bitfinex/quotes_SOLUSD_20251208
["timestamp","ask_amount","ask_price","bid_price","bid_amount"]
[1765197824319,11.3439999,137.53,137.5,0.72]
[1765197824522,4.07280644,137.52,137.5,7.96]
[1765197824817,3.38280644,137.51,137.48,77.85354804]
[1765197825011,4.07280644,137.51,137.48,15.95354804]
[1765197825519,0.69,137.5,137.48,7.96]
[1765197825680,3.38280644,137.49,137.46,8.68]
[1765197826007,3.38280644,137.49,137.42,0.72]
[1765197826008,3.38280644,137.47,137.42,0.72]
[1765197826212,8.80994492,137.47,137.42,0.72]
[1765197826413,11.34765003,137.46,137.42,0.72]
[1765197827089,11.34765003,137.46,137.42,7.99690857]
[1765197827294,7.27166957,137.52,137.45,3.38280644]
[1765197827493,16.77161449,137.52,137.47,3.38280644]
[1765197827694,0.69,137.51,137.48,0.72]
[1765197828186,0.69,137.5,137.46,7.96]
[1765197828410,11.34567421,137.5,137.46,8.68]
[1765197829200,11.34567421,137.5,137.46,7.96]
[1765197829407,11.34567421,137.5,137.47,0.72]
[1765197830093,0.69,137.5,137.47,7.9941618]
[1765197830293,10.65465755,137.52,137.47,7.9941618]
[1765197830498,26.9629439,137.53,137.48,4.10280644]
[1765197830693,7.27127346,137.53,137.49,11.34280644]
[1765197830893,7.27127346,137.53,137.49,12.06280644]
[1765197831222,7.27127346,137.53,137.5,0.72]
[1765197831399,20.15344755,137.54,137.5,0.72]
[1765197832310,16.77064111,137.54,137.5,0.72]
[1765197832516,16.77064111,137.54,137.5,4.10280644]
[1765197832693,20.15344755,137.54,137.5,0.72]
[1765197836111,0.69,137.54,137.5,7.99266955]
[1765197836510,0.69,137.54,137.51,7.99219207]
[1765197838146,20.38167044,137.56,137.52,0.72]
[1765197838596,41.75269615,137.56,137.49,69.86]
[1765197838796,3.38280644,137.54,137.5,7.95242333]
[1765197839196,0.69,137.54,137.51,7.95198869]
[1765197839401,0.69,137.55,137.52,7.27165677]
[1765197839621,0.69,137.55,137.52,7.95165677]
[1765197840014,0.69,137.55,137.52,0.68]
[1765197840218,4.07280644,137.55,137.52,0.68]
[1765197840436,20.38167044,137.56,137.52,0.68]
[1765197840659,11.34289004,137.55,137.51,0.68]
[1765197840802,11.34289004,137.55,137.52,0.68]
[1765197841713,4.07280644,137.54,137.51,7.96]
[1765197841923,3.38280644,137.54,137.51,7.96]
[1765197842122,11.34289004,137.55,137.52,0.68]
[1765197842508,26.13529261,137.55,137.52,0.68]
[1765197842710,29.51809905,137.55,137.52,0.68]
[1765197842914,3.38280644,137.54,137.52,0.68]
[1765197843224,4.07280644,137.54,137.51,7.96]
[1765197843427,4.07280644,137.54,137.51,0.68]
[1765197844541,10.65394728,137.53,137.51,0.68]
[1765197846539,7.27114084,137.53,137.51,0.68]
[1765197850027,2.1669562,137.52,137.46,18.4758202]
[1765197850234,8.80994492,137.49,137.45,0.68]
[1765197850434,16.308864,137.5,137.43,7.96]
[1765197850750,16.308864,137.5,137.45,7.27534103]
[1765197850923,18.4758202,137.5,137.45,7.27534103]
[1765197851124,2.1669562,137.49,137.46,0.68]
[1765197851640,2.1669562,137.5,137.46,0.68]
[1765197852215,2.1669562,137.49,137.46,7.95478866]
[1765197852641,2.1669562,137.48,137.46,0.68]
[1765197852822,2.1669562,137.48,137.47,0.68]
[1765197853025,7.27283963,137.5,137.47,0.68]
[1765197853229,2.1669562,137.48,137.46,0.68]
[1765197853425,2.1669562,137.47,137.41,20.36009905]
[1765197853629,2.1669562,137.47,137.45,0.68]
[1765197854352,9.44132393,137.47,137.45,0.68]
[1765197854644,2.8569562,137.46,137.42,0.68]
[1765197854948,2.1669562,137.44,137.42,0.68]
[1765197855340,9.49994492,137.46,137.42,0.68]
[1765197855842,2.1669562,137.44,137.42,0.68]
[1765197856244,9.44293409,137.44,137.42,0.68]
[1765197856546,9.44293409,137.44,137.41,7.96]
[1765197856731,9.44293409,137.44,137.42,0.68]
[1765197858039,9.44293409,137.44,137.41,7.96]
[1765197858240,10.13293409,137.44,137.41,8.64]
[1765197858544,9.44293409,137.44,137.41,8.64]
[1765197859045,9.44293409,137.44,137.39,7.27848816]
[1765197859046,2.8569562,137.43,137.38,7.27900651]
[1765197859236,2.1669562,137.43,137.4,0.68]
[1765197860152,2.1669562,137.41,137.37,0.68]
[1765197860447,2.1669562,137.39,137.37,7.96]
[1765197860659,7.2778862,137.41,137.37,8.64]
[1765197860660,0.69,137.4,137.37,8.64]
[1765197860823,2.1669562,137.39,137.37,8.64]
[1765197861018,2.1669562,137.4,137.37,8.64]
[1765197861219,2.1669562,137.4,137.37,15.91953593]
[1765197861421,2.1669562,137.43,137.38,0.66]
[1765197861722,7.27604407,137.44,137.39,2.1669562]
[1765197861927,7.27604407,137.44,137.4,0.66]
[1765197862253,7.27604407,137.44,137.41,7.96]
[1765197862753,7.275571,137.45,137.42,0.66]
[1765197863252,0.71,137.44,137.41,7.96]
[1765197863467,16.308864,137.48,137.42,0.66]
[1765197863637,0.71,137.48,137.44,2.1669562]
[1765197863955,10.97690112,137.49,137.43,2.1669562]
[1765197864159,27.99576512,137.49,137.43,2.1669562]
[1765197864461,7.27393931,137.48,137.44,0.66]
[1765197864959,7.27393931,137.48,137.45,7.96]
[1765197865343,7.27393931,137.48,137.46,0.66]
[1765197867944,9.44089551,137.48,137.46,0.66]
[1765197870746,9.44035313,137.49,137.46,0.66]
[1765197871068,7.27339693,137.49,137.46,0.66]
[1765197872856,7.27272727,137.5,137.46,0.66]
[1765197873265,7.27272727,137.5,137.46,10.10179417]
[1765197873461,7.27228681,137.51,137.47,0.66]
[1765197873675,9.43883096,137.52,137.48,7.96]
[1765197873848,9.43883096,137.52,137.49,0.66]
[1765197874258,10.14883096,137.52,137.49,0.66]
[1765197875276,2.1669562,137.51,137.48,8.62]
[1765197876090,7.27187476,137.52,137.49,0.66]
[1765197876389,7.27065393,137.54,137.49,10.10019735]
[1765197876763,24.28951793,137.54,137.5,0.66]
[1765197876963,24.28951793,137.54,137.51,7.96]
[1765197877375,24.28951793,137.54,137.51,8.62]
[1765197878979,2.8769562,137.53,137.51,7.96]
[1765197879272,2.8769562,137.53,137.49,0.66]
[1765197879477,2.8769562,137.53,137.49,8.62]
[1765197880075,2.8769562,137.53,137.5,0.66]
[1765197880984,7.27166957,137.52,137.5,0.66]
[1765197887386,10.14832139,137.53,137.5,0.66]
[1765197887979,7.27136519,137.53,137.5,0.66]
[1765197888485,7.98136519,137.53,137.5,0.66]
[1765197888885,9.43775691,137.54,137.5,7.93263286]
[1765197889071,10.14775691,137.54,137.5,7.93263286]
[1765197889274,10.14775691,137.54,137.51,0.66]
[1765197889764,10.14725682,137.55,137.51,7.93213165]
[1765197890288,0.71,137.54,137.51,7.93213165]
[1765197892976,24.26864406,137.56,137.52,0.66]
[1765197893164,0.69,137.55,137.52,0.66]
[1765197893364,2.8569562,137.55,137.52,0.66]
[1765197893871,2.1669562,137.55,137.51,7.27213165]
[1765197894062,0.69,137.54,137.51,7.93213165]
[1765197895289,0.69,137.54,137.51,10.09908785]
[1765197896380,7.96067151,137.54,137.5,71.33952288]
[1765197896570,7.96067151,137.54,137.5,71.99952288]
[1765197896774,7.96067151,137.54,137.5,79.95952288]
[1765197896974,7.96067151,137.54,137.51,0.66]
[1765197897797,0.69,137.53,137.5,79.29952288]
[1765197898090,0.69,137.53,137.5,17.39952288]
[1765197898294,0.69,137.53,137.51,2.1669562]
[1765197898509,0.69,137.53,137.5,15.23256668]
[1765197898676,0.69,137.53,137.5,18.05952288]
[1765197900279,7.96131514,137.53,137.5,18.05952288]
[1765197900894,0.69,137.53,137.5,18.05952288]
[1765197901705,7.96121932,137.53,137.5,18.05952288]
[1765197902003,16.308864,137.56,137.52,2.1669562]
[1765197902300,0.69,137.58,137.55,2.1669562]
[1765197902488,7.26744186,137.6,137.56,2.1669562]
[1765197902686,7.26744186,137.6,137.57,2.1669562]
[1765197902883,0.69,137.59,137.57,2.1669562]
[1765197903086,0.69,137.59,137.56,8.62]
[1765197903289,0.69,137.59,137.57,2.1669562]
[1765197903588,0.69,137.61,137.58,2.1669562]
[1765197904095,7.95717911,137.61,137.58,2.8269562]
[1765197904406,7.95717911,137.61,137.58,10.09538316]
[1765197904577,7.95717911,137.61,137.58,7.92842696]
[1765197905080,7.95717911,137.61,137.58,0.66]
[1765197905284,0.69,137.63,137.59,10.7869562]
[1765197905483,7.26562303,137.64,137.6,2.1669562]
[1765197905797,0.69,137.65,137.6,2.8269562]
[1765197906002,7.95498609,137.65,137.61,0.66]
[1765197906378,7.95498609,137.65,137.61,7.92676944]
[1765197906688,7.95498609,137.65,137.62,0.431]
[1765197907005,0.69,137.64,137.6,9.43419858]
[1765197907201,0.69,137.64,137.6,7.26724238]
[1765197908317,0.69,137.64,137.6,9.43419858]
[1765197908712,0.69,137.64,137.6,11.30742209]
[1765197908878,0.69,137.64,137.61,0.66]
[1765197910398,0.69,137.64,137.61,7.92662775]
[1765197914089,0.69,137.64,137.61,7.26662775]
[1765197914286,0.69,137.64,137.61,7.92662775]
[1765197915310,7.95540266,137.64,137.61,0.66]
[1765197915499,10.64558237,137.64,137.59,7.26774641]
[1765197915807,0.69,137.63,137.59,15.88774641]
[1765197916005,0.69,137.63,137.6,0.66]
[1765197916308,0.79,137.66,137.62,3.38017971]
[1765197916489,0.79,137.66,137.63,0.66]
[1765197916917,4.17017971,137.66,137.63,0.66]
[1765197917388,11.43468068,137.66,137.63,0.66]
[1765197917711,0.79,137.66,137.63,0.66]
[1765197918011,11.43452215,137.66,137.63,0.66]
[1765197918505,11.43452215,137.66,137.63,7.92574231]
[1765197918681,4.17017971,137.66,137.63,7.92574231]
[1765197921512,0.79,137.66,137.63,7.92574231]
[1765197923424,0.1,137.66,137.64,0.69]
[1765197923614,0.1,137.66,137.64,7.95524295]
[1765197925924,0.1,137.66,137.64,15.91524295]
[1765197930327,0.1,137.66,137.64,8.65]
[1765197931022,0.81,137.66,137.64,15.91524537]
[1765197931218,4.19017971,137.66,137.64,15.91524537]
[1765197932121,3.48017971,137.66,137.64,15.91524537]
[1765197932324,0.71,137.65,137.64,7.96]
[1765197932512,4.09017971,137.65,137.64,7.96]
[1765197932822,10.74448232,137.66,137.64,7.96]
[1765197933004,10.74448232,137.66,137.64,8.65]
[1765197933321,4.19017971,137.66,137.64,7.96]
[1765197935000,0.81,137.66,137.64,7.96]
[1765197935201,0.1,137.66,137.64,8.65]
[1765197935845,0.81,137.66,137.64,8.65]
[1765197937224,0.81,137.66,137.64,7.96]
[1765197939009,11.45476821,137.66,137.62,7.26619311]
[1765197939201,11.45476821,137.66,137.62,15.91619311]
[1765197939401,0.71,137.65,137.62,15.91619311]
[1765197939711,0.71,137.65,137.63,0.69]
[1765197940923,3.48017971,137.66,137.63,7.95585087]
[1765197941234,7.36446439,137.66,137.63,7.95585087]
[1765197941411,0.71,137.65,137.63,7.95585087]
[1765197945405,7.36446439,137.66,137.63,7.26585087]
[1765197945406,0.81,137.66,137.63,7.26585087]
[1765197945611,0.81,137.66,137.63,7.95585087]
[1765197947335,4.19017971,137.66,137.63,7.95585087]
[1765197948319,4.19017971,137.66,137.63,7.60185087]
[1765197948320,3.38017971,137.65,137.63,7.60185087]
[1765197948618,3.38017971,137.65,137.63,6.91185087]
[1765197948817,3.38017971,137.65,137.64,0.69]
[1765197949331,0.81,137.66,137.64,0.69]
[1765197949332,4.19017971,137.66,137.64,0.69]
[1765197949849,4.19017971,137.66,137.63,7.60185087]
[1765197950447,25.11880892,137.63,137.58,0.69]
[1765197950620,3.38017971,137.6,137.58,0.69]
[1765197951221,4.09017971,137.61,137.58,0.69]
[1765197951422,0.71,137.63,137.58,0.69]
[1765197951621,8.21139743,137.63,137.6,7.26725683]
[1765197951846,3.38017971,137.64,137.6,25.43586148]
[1765197952144,3.38017971,137.63,137.61,0.7]
[1765197952332,3.38017971,137.63,137.61,7.9666227]
[1765197952921,4.09017971,137.63,137.61,7.9666227]
[1765197953119,3.38017971,137.63,137.61,7.2666227]
[1765197953425,4.09017971,137.63,137.61,7.2666227]
[1765197953619,3.38017971,137.63,137.61,7.9666227]
[1765197953832,4.09017971,137.63,137.61,7.9666227]
[1765197954029,4.09017971,137.63,137.61,7.2666227]
[1765197954552,3.38017971,137.63,137.61,7.9666227]
[1765197955924,5.54303063,137.64,137.61,7.9666227]
[1765197955925,8.92321034,137.64,137.61,7.2666227]
[1765197956139,3.38017971,137.65,137.62,7.96628969]
[1765197956640,4.09017971,137.65,137.62,7.96628969]
[1765197958136,3.38017971,137.64,137.62,7.96628969]
[1765197958619,3.38017971,137.64,137.62,7.26628969]
[1765197958816,3.38017971,137.64,137.62,7.91628969]
[1765197960522,3.38017971,137.64,137.61,7.26646449]
[1765197960851,11.35506446,137.65,137.62,7.26628804]
[1765197961046,3.38017971,137.64,137.62,7.91628804]
[1765197961852,11.35506446,137.65,137.62,7.91628804]
[1765197962031,0.71,137.64,137.61,0.65]
[1765197962355,0.71,137.64,137.61,7.91690248]
[1765197962940,4.09017971,137.64,137.61,7.91690248]
[1765197963258,4.09017971,137.64,137.61,7.26690248]
[1765197963556,4.09017971,137.64,137.62,0.65]
[1765197964142,3.38017971,137.64,137.62,0.65]
[1765197964443,0.71,137.63,137.6,15.87729752]
[1765197964643,4.09017971,137.63,137.6,15.87729752]
[1765197964853,4.09017971,137.63,137.58,0.65]
[1765197964854,3.38017971,137.61,137.58,0.65]
[1765197965054,3.38017971,137.61,137.59,7.96]
[1765197965257,4.09017971,137.61,137.59,7.96]
[1765197965435,4.09017971,137.61,137.59,8.61]
[1765197965757,3.38017971,137.61,137.59,8.61]
[1765197965954,4.09017971,137.61,137.58,7.91820743]
[1765197966132,4.09017971,137.61,137.58,15.87820743]
[1765197967033,4.09017971,137.6,137.58,7.96]
[1765197967437,3.38017971,137.6,137.58,7.96]
[1765197967647,4.09017971,137.59,137.54,8.61]
[1765197967848,3.38017971,137.57,137.55,0.65]
[1765197968160,3.38017971,137.57,137.51,34.48890408]
[1765197968462,3.38017971,137.55,137.52,8.61]
[1765197968866,2.87667256,137.55,137.52,8.61]
[1765197969035,0.71,137.54,137.52,7.96]
[1765197969458,2.87667256,137.54,137.52,7.96]
[1765197970057,2.16667256,137.54,137.52,15.88163058]
[1765197971260,2.16667256,137.55,137.52,15.88163058]
[1765197971453,2.87667256,137.55,137.52,15.88163058]
[1765197972657,2.16667256,137.58,137.53,2.81667256]
[1765197973033,2.87667256,137.58,137.54,0.65]
[1765197973232,2.87667256,137.58,137.55,7.96]
[1765197973437,2.87667256,137.58,137.55,8.61]
[1765197973959,2.16667256,137.56,137.53,0.65]
[1765197974257,2.16667256,137.55,137.51,7.2721033]
[1765197974458,2.16667256,137.54,137.51,7.9221033]
[1765197974655,2.16667256,137.54,137.51,15.8821033]
[1765197974851,2.87667256,137.54,137.51,15.8821033]
[1765197975035,2.87667256,137.54,137.51,7.9221033]
[1765197975236,2.87667256,137.54,137.51,15.8821033]
[1765197975435,2.87667256,137.54,137.51,7.9221033]
[1765197975662,2.87667256,137.54,137.51,15.8821033]
[1765197977368,2.16667256,137.55,137.52,0.65]
[1765197977549,2.87667256,137.55,137.52,7.92153241]
[1765197977752,0.71,137.54,137.52,7.92153241]
[1765197978571,0.71,137.54,137.52,0.65]
[1765197981868,0.71,137.54,137.51,18.06865882]
[1765197984054,7.98071587,137.54,137.51,8.63]
[1765197984558,2.85667256,137.53,137.49,0.67]
[1765197984766,0.69,137.52,137.49,0.67]
[1765197985454,0.69,137.52,137.49,7.94318063]
[1765197987164,7.96203005,137.52,137.48,15.23372394]
[1765197987378,7.96203005,137.52,137.48,15.90372394]
[1765197987559,0.69,137.51,137.49,7.27324318]
[1765197987764,0.69,137.52,137.49,10.10991574]
[1765197989874,0.69,137.54,137.5,2.83667256]
[1765197990180,0.69,137.53,137.5,2.83667256]
[1765197990577,0.69,137.53,137.5,0.67]
[1765197990801,0.69,137.53,137.5,10.10927189]
[1765197991171,0.69,137.53,137.5,7.94259933]
[1765197992086,0.69,137.53,137.5,10.10927189]
[1765197992480,0.69,137.53,137.5,9.43927189]
[1765197992677,0.69,137.53,137.51,7.94205412]
[1765197992881,0.69,137.53,137.51,0.67]
[1765197993176,43.29343439,137.56,137.52,2.16667256]
[1765197993177,7.95969733,137.56,137.52,2.16667256]
[1765197993688,0.69,137.55,137.52,2.83667256]
[1765197994187,0.69,137.55,137.52,0.67]
[1765197994389,2.85667256,137.55,137.51,7.96]
[1765197994686,9.43780336,137.54,137.51,7.96]
[1765197994891,10.12780336,137.54,137.51,7.96]
[1765197995075,0.69,137.53,137.51,7.96]
[1765197999895,7.96119831,137.53,137.51,7.96]
[1765198000767,7.96119831,137.53,137.5,7.94271714]
[1765198003301,7.96119831,137.53,137.49,10.12667256]
[1765198003302,7.96175011,137.52,137.49,15.23314898]
[1765198003676,0.69,137.51,137.49,15.90314898]
[1765198003984,7.27175011,137.52,137.49,15.90314898]
[1765198004186,2.85667256,137.51,137.47,0.67]
[1765198004491,2.16667256,137.5,137.47,0.67]
[1765198004695,0.69,137.5,137.47,0.67]
[1765198005270,0.69,137.5,137.47,7.94429585]
[1765198005471,7.9627432,137.5,137.47,7.94429585]
[1765198005995,7.9627432,137.5,137.47,7.27429585]
[1765198006308,0.69,137.52,137.48,0.67]
[1765198006597,0.69,137.52,137.48,2.83667256]
[1765198006796,0.69,137.52,137.49,0.67]
[1765198007588,10.12858591,137.52,137.48,7.27358491]
[1765198007988,0.69,137.51,137.48,7.94358491]
[1765198010989,7.96228691,137.51,137.48,0.67]
[1765198011714,7.96228691,137.51,137.48,10.11020958]
[1765198011715,0.7,137.51,137.48,10.11020958]
[1765198013017,0.7,137.51,137.48,7.94353702]
[1765198014013,10.13892054,137.51,137.48,0.68]
[1765198014216,7.97224798,137.51,137.48,7.95375784]
[1765198014389,2.16667256,137.52,137.48,7.95375784]
[1765198014390,9.43846094,137.52,137.48,7.95375784]
[1765198014589,0.7,137.51,137.48,7.95375784]
[1765198015210,18.17840344,137.53,137.49,0.68]
[1765198015211,7.2711917,137.53,137.49,0.68]
[1765198015414,7.97079057,137.54,137.49,10.80667256]
[1765198015799,7.97079057,137.54,137.5,0.68]
[1765198016394,0.7,137.53,137.5,0.68]
[1765198016592,0.7,137.53,137.5,7.95261524]
[1765198016893,7.97151441,137.53,137.5,0.68]
[1765198017517,7.97151441,137.53,137.5,7.95265795]
[1765198018391,5.99494006,137.58,137.52,2.16667256]
[1765198018592,0.68,137.61,137.57,2.16667256]
[1765198018803,7.94707013,137.61,137.58,2.16667256]
[1765198019003,7.94707013,137.61,137.58,2.82667256]
[1765198019294,7.26707013,137.61,137.59,0.66]
[1765198019918,7.94707013,137.61,137.58,2.16667256]
[1765198020099,7.94707013,137.61,137.58,2.82667256]
[1765198020294,7.94707013,137.61,137.58,0.66]
[1765198020611,5.50756663,137.62,137.58,2.82667256]
[1765198020834,0.68,137.61,137.58,10.09495183]
[1765198021717,12.77403099,137.62,137.59,0.66]
[1765198021921,7.94575072,137.64,137.6,2.16667256]
[1765198022217,16.308864,137.65,137.6,2.16667256]
[1765198022218,7.26501075,137.65,137.61,2.16667256]
[1765198022425,8.04445368,137.66,137.62,9.4329095]
[1765198022724,0.68,137.65,137.62,0.66]
[1765198023297,0.1,137.66,137.62,10.09280802]
[1765198023497,0.1,137.66,137.65,2.16667256]
[1765198023702,0.1,137.66,137.65,10.78667256]
[1765198024617,0.1,137.66,137.65,18.05147459]
[1765198028420,0.1,137.67,137.66,8.80994492]
[1765198028609,0.1,137.67,137.66,11.63661748]
[1765198029012,0.1,137.67,137.66,18.90089177]
[1765198029209,0.1,137.67,137.66,19.64066789]
[1765198029430,0.1,137.67,137.66,20.95739553]
[1765198029630,0.1,137.67,137.66,18.05094685]
[1765198030328,0.1,137.67,137.66,15.88427429]
[1765198030505,0.78,137.67,137.62,2.82667256]
[1765198030710,0.78,137.67,137.62,4.03906999]
[1765198030901,0.78,137.67,137.63,0.66]
[1765198031618,0.78,137.67,137.63,7.92570753]
[1765198032532,8.04376046,137.67,137.63,7.92570753]
[1765198033029,8.04376046,137.67,137.63,11.30477752]
[1765198035732,11.3236569,137.66,137.61,7.92656387]
[1765198036034,11.3236569,137.66,137.61,15.88656387]
[1765198036214,0.68,137.65,137.61,15.88656387]
[1765198036733,3.47906999,137.67,137.62,0.66]
[1765198036915,0.68,137.65,137.62,0.66]
[1765198037236,0.68,137.65,137.62,8.62]
[1765198037414,0.68,137.65,137.62,7.96]
[1765198038525,7.9448152,137.65,137.62,7.96]
[1765198040028,7.9448152,137.65,137.62,15.88634829]
[1765198040228,0.68,137.65,137.62,15.88634829]
[1765198040453,8.04395209,137.67,137.63,0.66]
[1765198040619,7.36395209,137.67,137.63,0.66]
[1765198040823,0.68,137.66,137.63,0.66]
[1765198041646,0.68,137.66,137.63,7.92583765]
[1765198042016,8.06395209,137.67,137.64,0.7]
[1765198042751,7.36395209,137.67,137.63,7.26583765]
[1765198042941,0.7,137.66,137.63,7.96583765]
[1765198044653,0.1,137.67,137.64,0.7]
[1765198045145,0.8,137.67,137.64,7.9652318]
[1765198055637,0.1,137.67,137.65,12.03906999]
[1765198055834,0.1,137.67,137.66,3.37906999]
[1765198056169,0.1,137.67,137.66,4.07906999]
[1765198057033,0.1,137.67,137.66,11.34334428]
[1765198057851,0.1,137.67,137.66,20.1532892]
[1765198058050,0.1,137.67,137.66,11.34334428]
[1765198060336,0.1,137.7,137.66,74.63534643]
[1765198060656,0.1,137.7,137.69,19.68793399]
[1765198060858,0.1,137.7,137.69,28.34793399]
[1765198062476,0.1,137.7,137.69,35.61062554]
[1765198064665,0.1,137.7,137.69,18.60176154]
[1765198065246,0.1,137.7,137.69,19.30176154]
[1765198065443,0.1,137.7,137.69,11.34176154]
[1765198065670,0.1,137.7,137.69,19.30176154]
[1765198070776,0.1,137.7,137.69,18.60176154]
[1765198071283,0.1,137.7,137.69,19.29176154]
[1765198075181,1e-08,137.7,137.69,41.03150047]
[1765198075360,1e-08,137.7,137.69,44.41057046]
[1765198076670,0.1,137.72,137.71,16.308864]
[1765198076870,0.1,137.72,137.71,28.33793399]
[1765198077468,0.1,137.73,137.72,8.80994492]
[1765198077666,1e-08,137.73,137.72,11.33017948]
[1765198078059,1e-08,137.73,137.72,10.64017948]
[1765198081576,0.69000001,137.73,137.72,15.22110949]
[1765198082168,1e-08,137.73,137.72,19.26017948]
[1765198084189,1e-08,137.73,137.72,81.16017948]
[1765198084404,1e-08,137.73,137.72,44.3789884]
[1765198084961,0.1,137.75,137.74,16.308864]
[1765198085275,0.1,137.75,137.74,34.90798916]
[1765198085476,0.1,137.75,137.74,35.56798916]
[1765198085673,0.1,137.75,137.74,34.90798916]
[1765198085997,0.79,137.75,137.72,15.22089455]
[1765198086169,3.37906999,137.73,137.7,2.90539313]
[1765198086500,3.37906999,137.73,137.69,7.2624581]
[1765198086804,0.69,137.72,137.69,7.2624581]
[1765198087978,0.69,137.72,137.69,10.64152809]
[1765198089282,0.69,137.72,137.7,7.96]
[1765198090696,0.69,137.74,137.7,10.78019504]
[1765198091280,0.69,137.74,137.71,7.26163677]
[1765198093995,0.1,137.75,137.71,10.08183181]
[1765198094198,0.79,137.75,137.72,10.12019504]
[1765198094598,0.79,137.75,137.72,10.78019504]
[1765198094786,0.1,137.75,137.73,0.66]
[1765198094991,0.1,137.75,137.74,7.96]
[1765198095187,0.79,137.75,137.74,7.96]
[1765198103808,10.20972317,137.75,137.74,7.96]
[1765198104011,10.20972317,137.75,137.71,15.221446]
[1765198104216,0.72,137.74,137.71,15.221446]
[1765198104706,0.72,137.74,137.72,7.26110371]
[1765198107311,0.1,137.75,137.73,0.69]
[1765198107504,0.1,137.75,137.74,7.96]
[1765198107893,0.1,137.75,137.74,8.65]
[1765198108098,0.1,137.75,137.74,10.81019504]
[1765198108296,0.1,137.75,137.74,7.96]
[1765198108809,0.1,137.75,137.74,15.22005517]
[1765198109390,0.1,137.75,137.74,15.91005517]
[1765198109796,0.1,137.75,137.74,15.22005517]
[1765198110216,0.1,137.75,137.74,15.91005517]
[1765198111622,0.1,137.75,137.74,18.07025021]
[1765198113613,0.82,137.75,137.74,15.22005517]
[1765198114212,0.1,137.75,137.74,15.22005517]
[1765198115822,0.1,137.75,137.74,15.91005517]
[1765198116124,0.82,137.75,137.74,15.22005517]
[1765198116618,0.1,137.75,137.74,15.22005517]
[1765198117928,0.1,137.75,137.74,7.96]
[1765198118100,0.82,137.75,137.73,7.2603835]
[1765198119127,0.1,137.75,137.74,7.26005517]
[1765198119501,0.1,137.75,137.74,10.11025021]
[1765198119720,0.1,137.75,137.74,18.07025021]
[1765198121397,0.1,137.75,137.74,15.22005517]
[1765198122430,0.1,137.75,137.74,17.38025021]
[1765198122726,0.1,137.75,137.74,18.07025021]
[1765198129536,0.82,137.75,137.73,7.26026478]
[1765198129835,0.82,137.75,137.72,10.12019504]
[1765198130031,0.82,137.75,137.74,7.26005517]
[1765198131038,0.82,137.75,137.73,7.26058229]
[1765198134233,2.16019504,137.74,137.69,16.988864]
[1765198134435,2.16019504,137.74,137.71,7.26125098]
[1765198134617,0.71,137.73,137.71,7.26125098]
[1765198134929,0.71,137.73,137.7,10.12019504]
[1765198134930,0.71,137.73,137.7,17.38224645]
[1765198135126,0.71,137.73,137.71,7.26162187]
[1765198136210,0.71,137.73,137.71,7.13902187]
[1765198139246,0.77,137.75,137.71,10.01921691]
[1765198139452,0.67,137.74,137.71,10.01921691]
[1765198140858,0.67,137.74,137.71,28.17330884]
[1765198141329,0.67,137.74,137.72,7.96]
[1765198141529,0.1,137.75,137.72,10.84019504]
[1765198141739,0.77,137.75,137.72,7.69219504]
[1765198142341,0.77,137.75,137.73,7.26058229]
[1765198144249,0.77,137.75,137.72,12.79295775]
[1765198146038,2.16019504,137.74,137.72,12.79295775]
[1765198146235,2.16019504,137.74,137.72,5.532]
[1765198146464,0.67,137.73,137.72,5.532]
[1765198146650,0.67,137.73,137.72,12.79310949]
[1765198147747,0.77,137.75,137.72,12.79310949]
[1765198147962,0.1,137.75,137.73,0.72]
[1765198148266,0.77,137.75,137.73,0.72]
[1765198148437,0.77,137.75,137.72,12.79310949]